bitfinex/quotes_SOLUSD_20240808
["timestamp","ask_amount","ask_price","bid_price","bid_amount"]
[1723101542066,15.5364,155.17,155.09,27.95]
[1723101542265,15.5364,155.17,155.1,66.28907759]
[1723101542460,15.5364,155.17,155.11,1.28908367]
[1723101542666,15.5364,155.17,155.1,65.0]
[1723101543045,15.5364,155.17,155.1,20.0]
[1723101543250,15.5364,155.17,155.07,20.0]
[1723101543476,0.34,155.16,155.07,20.0]
[1723101543694,0.34,155.16,155.08,45.0]
[1723101543857,0.34,155.16,155.09,20.0]
[1723101544680,0.34,155.16,155.08,45.0]
[1723101544681,0.34,155.16,155.04,27.95]
[1723101544977,27.95,155.15,155.04,27.95]
[1723101545151,0.34,155.14,155.04,27.95]
[1723101546147,0.34,155.14,155.05,20.0]
[1723101546351,432.5864,155.17,155.05,21.28949541]
[1723101546594,404.6364,155.17,155.07,27.95]
[1723101546748,404.6364,155.17,155.08,20.0]
[1723101547357,432.5864,155.17,155.08,20.0]
[1723101547557,404.6364,155.17,155.06,20.0]
[1723101547752,404.6364,155.17,155.09,27.95]
[1723101548076,432.5864,155.17,155.06,20.0]
[1723101548674,432.5864,155.17,155.05,20.0]
[1723101548977,0.17,155.16,155.05,20.0]
[1723101549174,15.4888,155.15,155.04,27.95]
[1723101549375,0.34,155.14,155.05,45.0]
[1723101551250,15.4888,155.15,155.08,27.95]
[1723101551578,15.4888,155.15,155.09,65.0]
[1723101551767,15.4888,155.15,155.09,66.28925962]
[1723101552368,6.5337,155.18,155.12,27.95]
[1723101552571,16.6649,155.19,155.13,65.0]
[1723101555090,16.6649,155.19,155.13,20.0]
[1723101555385,16.6649,155.19,155.09,27.95]
[1723101555686,16.6649,155.19,155.07,27.95]
[1723101555687,6.1257,155.17,155.07,27.95]
[1723101555991,0.34,155.16,155.05,34.3128]
[1723101556567,15.9357,155.15,155.05,27.95]
[1723101556771,0.34,155.14,155.05,27.95]
[1723101557184,0.34,155.14,155.03,27.95]
[1723101557595,0.34,155.14,155.06,27.95]
[1723101557785,15.9357,155.15,155.07,45.0]
[1723101558161,15.9357,155.15,155.08,20.0]
[1723101558380,15.9357,155.15,155.07,20.0]
[1723101558381,0.17,155.14,155.07,20.0]
[1723101559582,0.34,155.14,155.07,20.0]
[1723101559992,0.34,155.14,155.05,20.0]
[1723101560171,0.17,155.14,155.06,74.23949976]
[1723101560492,15.9357,155.15,155.07,20.0]
[1723101560796,15.9357,155.15,155.08,46.28928299]
[1723101560982,15.9357,155.15,155.08,72.95]
[1723101561287,15.2429,155.19,155.12,27.95]
[1723101561480,15.2429,155.19,155.13,21.28902383]
[1723101562195,15.2429,155.19,155.13,1.28902383]
[1723101562380,15.2429,155.19,155.1,1.28902603]
[1723101562574,15.2429,155.19,155.11,1.28902504]
[1723101562779,15.2429,155.19,155.11,21.28902504]
[1723101562970,15.2429,155.19,155.12,45.0]
[1723101563172,15.2429,155.19,155.13,20.0]
[1723101563377,25.26,155.21,155.13,21.28886826]
[1723101563595,25.26,155.21,155.14,45.0]
[1723101563782,25.26,155.21,155.15,20.0]
[1723101563978,25.26,155.21,155.14,45.0]
[1723101564587,0.17,155.2,155.08,63.04996756]
[1723101564789,0.17,155.2,155.09,65.34]
[1723101565083,0.17,155.2,155.09,65.0]
[1723101565286,0.34,155.2,155.1,1.28909476]
[1723101565481,21.9528,155.19,155.1,1.28909476]
[1723101565683,0.17,155.18,155.09,65.0]
[1723101566400,0.17,155.18,155.1,1.28884541]
[1723101566780,0.17,155.18,155.09,20.0]
[1723101566979,0.17,155.18,155.07,21.28884541]
[1723101566980,0.34,155.18,155.07,21.28884541]
[1723101567186,0.34,155.18,155.07,1.28884541]
[1723101567896,45.34,155.18,155.04,6.5659]
[1723101568098,389.1,155.18,155.05,20.69914546]
[1723101568399,389.1,155.18,155.07,19.41]
[1723101568567,389.1,155.18,155.08,46.45896668]
[1723101568773,389.1,155.18,155.09,19.41]
[1723101569073,389.1,155.18,155.08,46.45896668]
[1723101569074,389.1,155.18,155.1,45.0]
[1723101569275,389.1,155.18,155.11,20.0]
[1723101569476,21.9528,155.19,155.12,45.0]
[1723101569683,21.9528,155.19,155.13,20.0]
[1723101569885,21.9528,155.19,155.05,37.22918635]
[1723101570090,21.9528,155.19,155.06,20.0]
[1723101570272,0.17,155.18,155.06,20.0]
[1723101570475,0.34,155.18,155.07,1.28920488]
[1723101570990,0.17,155.18,155.07,1.28920488]
[1723101571301,21.9528,155.19,155.08,0.17]
[1723101571507,21.9528,155.19,155.08,20.34]
[1723101571811,0.17,155.18,155.09,45.0]
[1723101571978,0.17,155.18,155.1,20.0]
[1723101572179,0.17,155.18,155.11,45.0]
[1723101572380,21.9528,155.19,155.12,21.15284658]
[1723101572596,21.9528,155.19,155.13,45.0]
[1723101572798,21.9528,155.19,155.14,20.0]
[1723101576007,21.9528,155.19,155.05,19.41]
[1723101576209,0.34,155.18,155.05,20.6992176]
[1723101577291,0.34,155.18,155.06,45.17]
[1723101578080,0.34,155.18,155.07,21.28920797]
[1723101578306,0.34,155.18,155.08,45.0]
[1723101578498,0.34,155.18,155.09,20.0]
[1723101578705,0.34,155.18,155.1,45.0]
[1723101579004,0.34,155.18,155.11,20.0]
[1723101582680,28.31,155.18,155.07,27.97]
[1723101582885,28.31,155.18,155.08,45.0]
[1723101583111,28.31,155.18,155.07,27.97]
[1723101583280,15.3888,155.17,155.05,27.97]
[1723101583481,73.31,155.16,155.05,27.97]
[1723101583676,28.31,155.16,155.05,27.97]
[1723101583918,0.34,155.16,155.05,27.97]
[1723101584284,0.34,155.16,155.06,20.0]
[1723101584789,0.34,155.16,155.07,45.0]
[1723101585086,0.34,155.16,155.08,20.0]
[1723101585706,15.3888,155.17,155.08,21.28935183]
[1723101585909,15.3888,155.17,155.09,72.97]
[1723101586097,15.3888,155.17,155.1,20.0]
[1723101586293,15.3888,155.17,155.11,45.0]
[1723101586602,15.3888,155.17,155.12,20.0]
[1723101586801,15.3888,155.17,155.13,45.0]
[1723101587108,15.3888,155.17,155.12,20.0]
[1723101587311,15.3888,155.17,155.1,20.0]
[1723101587609,15.3888,155.17,155.11,45.0]
[1723101587788,15.3888,155.17,155.12,20.0]
[1723101588908,15.3888,155.17,155.13,46.28830814]
[1723101589216,15.3888,155.17,155.12,20.0]
[1723101589413,15.3888,155.17,155.09,27.97]
[1723101589726,15.3888,155.17,155.04,19.41]
[1723101589893,15.3888,155.17,155.06,27.97]
[1723101590233,0.17,155.16,155.07,45.0]
[1723101590717,0.17,155.16,155.08,21.2890681]
[1723101590919,0.17,155.16,155.09,45.0]
[1723101591129,0.17,155.16,155.1,20.0]
[1723101591497,0.17,155.16,155.1,21.28930014]
[1723101591697,0.17,155.16,155.1,20.0]
[1723101591899,0.17,155.16,155.07,21.28904821]
[1723101592220,0.17,155.16,155.08,46.28929653]
[1723101592519,0.17,155.16,155.09,20.0]
[1723101592707,0.17,155.16,155.1,1.28913027]
[1723101592912,0.17,155.16,155.09,20.0]
[1723101593509,0.17,155.16,155.1,1.28929669]
[1723101595302,0.17,155.16,155.09,20.0]
[1723101595827,15.3888,155.17,155.1,1.28929657]
[1723101596028,15.3888,155.17,155.1,46.28929657]
[1723101596230,15.3888,155.17,155.11,20.0]
[1723101596406,15.3888,155.17,155.12,45.0]
[1723101596606,15.3888,155.17,155.11,20.0]
[1723101596823,15.3888,155.17,155.09,20.0]
[1723101597015,15.3888,155.17,155.1,45.0]
[1723101597215,15.3888,155.17,155.11,20.0]
[1723101601517,0.17,155.16,155.11,20.0]
[1723101601725,0.34,155.16,155.09,20.0]
[1723101601938,0.34,155.16,155.07,20.0]
[1723101602745,15.3888,155.17,155.08,1.28935057]
[1723101603041,417.07,155.2,155.13,27.97]
[1723101603042,389.1,155.2,155.13,27.97]
[1723101603339,389.1,155.2,155.14,65.0]
[1723101603505,389.1,155.2,155.14,20.0]
[1723101603715,389.1,155.2,155.09,27.97]
[1723101603937,389.1,155.2,155.1,20.0]
[1723101604318,0.17,155.19,155.1,20.0]
[1723101604836,49.9169,155.18,155.08,1.28932703]
[1723101605027,49.9169,155.18,155.05,27.97]
[1723101605028,0.34,155.17,155.05,27.97]
[1723101605543,389.44,155.17,155.05,27.97]
[1723101605910,27.97,155.16,155.03,30.32075461]
[1723101606217,389.44,155.17,155.05,27.97]
[1723101606410,0.34,155.17,155.05,27.97]
[1723101606609,16.5775,155.22,155.13,27.97]
[1723101607213,16.5775,155.22,155.14,65.0]
[1723101608107,16.5775,155.22,155.16,27.97]
[1723101608336,0.8457099,155.26,155.19,47.38]
[1723101608517,0.8457099,155.26,155.2,20.0]
[1723101608718,0.8457099,155.26,155.2,65.0]
[1723101614433,0.8457099,155.26,155.2,20.0]
[1723101614611,0.8457099,155.26,155.19,27.97]
[1723101615932,0.8457099,155.26,155.2,1.28811644]
[1723101616240,0.8457099,155.26,155.2,66.28811644]
[1723101616738,0.8457099,155.26,155.2,94.25811644]
[1723101617837,0.8457099,155.26,155.2,65.0]
[1723101618513,0.8457099,155.26,155.2,20.0]
[1723101620918,0.8457099,155.26,155.2,66.28845495]
[1723101621248,0.8457099,155.26,155.2,65.0]
[1723101621415,0.8457099,155.26,155.2,20.0]
[1723101622355,16.5356,155.2,155.11,6.2682]
[1723101622509,16.5356,155.2,155.14,27.97]
[1723101622716,16.5356,155.2,155.18,27.97]
[1723101622915,16.5356,155.24,155.18,27.97]
[1723101623842,16.5356,155.24,155.19,20.0]
[1723101624729,16.5356,155.24,155.12,27.97]
[1723101624730,16.5356,155.24,155.16,27.97]
[1723101624936,16.5356,155.24,155.17,20.0]
[1723101628622,16.5356,155.24,155.2,27.97]
[1723101628844,16.5356,155.24,155.2,47.97]
[1723101630233,16.5356,155.24,155.2,45.0]
[1723101630437,16.5356,155.24,155.2,20.0]
[1723101631357,16.5356,155.24,155.2,27.97]
[1723101631535,16.5356,155.24,155.2,92.97]
[1723101633256,0.8457099,155.26,155.2,92.97]
[1723101638436,0.8457099,155.26,155.2,47.97]
[1723101640657,0.8457099,155.26,155.2,92.97]
[1723101641657,0.8457099,155.26,155.2,120.94]
[1723101641848,0.8457099,155.26,155.2,92.97]
[1723101642054,0.8457099,155.26,155.2,112.38]
[1723101642245,0.8457099,155.26,155.2,112.72]
[1723101642437,0.8457099,155.26,155.2,92.97]
[1723101643765,0.8457099,155.26,155.2,47.97]
[1723101644359,0.8457099,155.26,155.2,95.35]
[1723101644560,0.8457099,155.26,155.2,47.97]
[1723101645052,0.8457099,155.26,155.2,92.97]
[1723101645260,0.8457099,155.26,155.2,112.38]
[1723101645467,0.8457099,155.26,155.2,93.31]
[1723101645842,0.8457099,155.26,155.2,112.72]
[1723101646149,0.8457099,155.26,155.2,93.31]
[1723101646552,0.8457099,155.26,155.2,121.28]
[1723101646863,0.8457099,155.26,155.2,112.72]
[1723101647064,0.8457099,155.26,155.2,93.31]
[1723101648063,0.8457099,155.26,155.2,112.72]
[1723101648736,0.8457099,155.26,155.2,93.31]
[1723101648937,0.8457099,155.26,155.2,93.14]
[1723101649134,0.8457099,155.26,155.2,93.31]
[1723101649355,0.8457099,155.26,155.2,93.14]
[1723101650348,0.8457099,155.26,155.17,26.14739087]
[1723101650656,0.8457099,155.26,155.19,27.97]
[1723101651852,0.8457099,155.26,155.2,45.0]
[1723101652362,0.8457099,155.26,155.2,65.0]
[1723101655543,0.8457099,155.26,155.2,20.0]
[1723101657374,0.8457099,155.26,155.2,65.0]
[1723101657549,0.8457099,155.26,155.2,20.0]
[1723101657746,0.8457099,155.26,155.17,34.70739087]
[1723101658156,15.8622,155.22,155.17,34.70739087]
[1723101659179,15.8622,155.22,155.18,20.0]
[1723101659682,15.8622,155.22,155.19,27.97]
[1723101660050,15.9680099,155.26,155.2,20.0]
[1723101660769,15.9680099,155.26,155.2,65.0]
[1723101661071,15.9680099,155.26,155.2,20.0]
[1723101661279,15.9680099,155.26,155.2,65.0]
[1723101661655,15.9680099,155.26,155.2,84.15]
[1723101662775,15.9680099,155.26,155.2,20.0]
[1723101662957,15.9680099,155.26,155.2,19.15]
[1723101663278,15.9680099,155.26,155.2,84.15]
[1723101664468,15.9680099,155.26,155.2,20.0]
[1723101664662,15.9680099,155.26,155.2,19.15]
[1723101666765,15.9680099,155.26,155.2,64.15]
[1723101666969,15.9680099,155.26,155.2,140.75]
[1723101667179,15.9680099,155.26,155.2,160.75]
[1723101667353,15.9680099,155.26,155.2,160.92]
[1723101667668,15.9680099,155.26,155.25,19.15]
[1723101668586,15.9680099,155.26,155.21,20.0]
[1723101668784,15.9680099,155.26,155.22,19.15]
[1723101669012,15.9680099,155.26,155.23,19.15]
[1723101669156,15.9680099,155.26,155.25,19.15]
[1723101669481,15.9680099,155.26,155.25,39.15]
[1723101670690,15.9680099,155.26,155.02,20.0]
[1723101670861,15.9680099,155.26,155.22,19.15]
[1723101671060,15.9680099,155.26,155.16,6.73928925]
[1723101671255,15.9680099,155.26,155.22,19.15]
[1723101671486,15.9680099,155.26,155.23,19.15]
[1723101676095,15.9680099,155.26,155.24,19.15]
[1723101676395,15.9680099,155.26,155.25,19.15]
[1723101676596,15.9680099,155.26,155.23,19.15]
[1723101676987,15.9680099,155.26,155.24,19.15]
[1723101678182,0.8457099,155.26,155.25,19.15]
[1723101681311,0.8457099,155.26,155.24,19.15]
[1723101682807,0.8457099,155.26,155.23,19.15]
[1723101683008,0.8457099,155.26,155.24,20.0]
[1723101683309,0.8457099,155.26,155.18,16.3346]
[1723101683505,0.8457099,155.26,155.21,19.15]
[1723101683814,0.8457099,155.26,155.23,19.15]
[1723101684515,0.8457099,155.26,155.17,6.73935905]
[1723101684727,19.9957099,155.26,155.2,19.15]
[1723101685015,19.9957099,155.26,155.19,19.15]
[1723101685016,15.4554,155.24,155.19,19.15]
[1723101685590,0.34,155.23,155.18,19.15]
[1723101686806,0.17,155.23,155.19,19.15]
[1723101687101,15.4554,155.24,155.2,19.15]
[1723101687292,15.4554,155.24,155.22,19.15]
[1723101687482,15.4554,155.24,155.23,19.15]
[1723101687679,389.9457099,155.26,155.23,19.15]
[1723101689287,0.8457099,155.26,155.24,19.15]
[1723101689910,0.8457099,155.26,155.23,19.15]
[1723101690215,0.8457099,155.26,155.24,19.15]
[1723101690385,0.8457099,155.26,155.25,39.15]
[1723101691283,0.8457099,155.26,155.23,19.15]
[1723101691487,0.8457099,155.26,155.25,19.15]
[1723101691711,0.8457099,155.26,155.25,84.15]
[1723101692081,0.8457099,155.26,155.25,39.15]
[1723101695403,0.8457099,155.26,155.18,6.73824769]
[1723101695723,0.8457099,155.26,155.21,19.15]
[1723101695920,19.15,155.25,155.18,6.73824769]
[1723101696091,19.32,155.25,155.19,19.15]
[1723101696291,0.8457099,155.26,155.23,19.15]
[1723101696499,0.8457099,155.26,155.22,19.15]
[1723101697718,0.8457099,155.26,155.23,20.0]
[1723101698592,0.8457099,155.26,155.22,20.0]
[1723101699293,0.8457099,155.26,155.22,39.15]
[1723101699513,0.8457099,155.26,155.22,20.0]
[1723101700519,0.8457099,155.26,155.21,19.15]
[1723101700714,0.8457099,155.26,155.22,20.0]
[1723101700923,0.8457099,155.26,155.23,19.15]
[1723101701107,0.8457099,155.26,155.24,84.15]
[1723101701294,0.8457099,155.26,155.24,64.15]
[1723101701807,0.8457099,155.26,155.22,20.0]
[1723101702120,0.8457099,155.26,155.23,45.0]
[1723101702305,0.8457099,155.26,155.24,20.0]
[1723101702907,0.8457099,155.26,155.22,45.0]
[1723101702908,0.8457099,155.26,155.23,20.0]
[1723101703110,0.8457099,155.26,155.24,45.0]
[1723101704621,0.8457099,155.26,155.23,20.0]
[1723101704796,0.8457099,155.26,155.24,45.0]
[1723101704993,0.8457099,155.26,155.23,19.15]
[1723101705197,0.8457099,155.26,155.24,20.0]
[1723101705420,0.8457099,155.26,155.23,19.15]
[1723101705620,0.8457099,155.26,155.24,20.0]
[1723101706331,0.8457099,155.26,155.22,19.15]
[1723101706618,0.8457099,155.26,155.23,20.0]
[1723101708626,0.8457099,155.26,155.22,19.15]
[1723101708834,0.8457099,155.26,155.24,19.15]
[1723101709403,0.8457099,155.26,155.23,19.15]
[1723101709724,0.8457099,155.26,155.22,19.15]
[1723101709947,0.8457099,155.26,155.23,20.0]
[1723101710226,0.8457099,155.26,155.22,19.15]
[1723101710604,0.8457099,155.26,155.21,19.15]
[1723101710927,0.8457099,155.26,155.22,39.15]
[1723101711504,0.8457099,155.26,155.22,20.0]
[1723101712611,0.8457099,155.26,155.2,19.15]
[1723101712811,0.8457099,155.26,155.21,20.0]
[1723101714229,0.8457099,155.26,155.21,39.15]
[1723101714410,0.8457099,155.26,155.21,19.15]
[1723101714730,0.8457099,155.26,155.22,19.15]
[1723101717307,0.8457099,155.26,155.23,19.15]
[1723101717713,0.8457099,155.26,155.22,19.15]
[1723101720131,0.8457099,155.26,155.21,19.15]
[1723101720338,0.8457099,155.26,155.22,20.0]
[1723101720509,0.8457099,155.26,155.22,39.15]
[1723101722510,0.8457099,155.26,155.19,6.7385533]
[1723101722718,0.8457099,155.26,155.2,19.15]
[1723101722940,0.8457099,155.26,155.21,19.15]
[1723101724746,0.8457099,155.26,155.22,19.15]
[1723101725920,0.17,155.25,155.21,19.15]
[1723101726148,0.8457099,155.26,155.21,19.15]
[1723101727541,0.34,155.25,155.2,19.15]
[1723101727744,15.947,155.25,155.2,19.15]
[1723101728835,15.947,155.25,155.19,6.7385533]
[1723101729053,15.947,155.25,155.19,25.8885533]
[1723101730130,15.947,155.25,155.2,19.15]
[1723101730645,15.947,155.25,155.21,19.15]
[1723101731032,15.777,155.25,155.21,19.15]
[1723101731230,15.607,155.25,155.21,19.15]
[1723101731583,15.607,155.25,155.19,6.7385533]
[1723101731726,0.17,155.24,155.2,19.15]
[1723101732523,0.34,155.24,155.2,19.15]
[1723101733151,0.34,155.24,155.19,6.7385533]
[1723101733449,15.607,155.25,155.22,19.15]
[1723101733952,15.607,155.25,155.21,19.15]
[1723101734839,0.17,155.24,155.2,19.15]
[1723101735153,0.34,155.24,155.2,19.15]
[1723101735522,0.34,155.24,155.19,25.8885533]
[1723101735847,0.34,155.24,155.2,20.0]
[1723101736051,0.34,155.24,155.19,25.8885533]
[1723101736251,0.34,155.24,155.2,20.0]
[1723101736586,15.607,155.25,155.22,19.15]
[1723101737356,0.8457099,155.26,155.24,19.15]
[1723101737533,0.8457099,155.26,155.2,39.15]
[1723101737534,0.8457099,155.26,155.25,19.15]
[1723101738051,0.8457099,155.26,155.2,39.15]
[1723101738258,0.8457099,155.26,155.24,19.15]
[1723101738455,0.8457099,155.26,155.25,19.15]
[1723101738765,0.8457099,155.26,155.23,19.15]
[1723101738950,0.8457099,155.26,155.22,19.15]
[1723101740391,0.8457099,155.26,155.23,19.15]
[1723101740843,0.8457099,155.26,155.24,19.15]
[1723101742567,0.8457099,155.26,155.23,19.15]
[1723101742876,0.8457099,155.26,155.22,19.15]
[1723101744274,0.8457099,155.26,155.23,19.15]
[1723101745978,0.8457099,155.26,155.2,20.0]
[1723101746176,0.34,155.25,155.2,39.15]
[1723101746388,0.8457099,155.26,155.21,19.15]
[1723101746552,0.34,155.25,155.21,19.15]
[1723101747078,0.8457099,155.26,155.24,19.15]
[1723101749660,0.8457099,155.26,155.23,19.15]
[1723101750372,0.8457099,155.26,155.22,19.15]
[1723101751369,0.8457099,155.26,155.25,19.15]
[1723101751784,0.8457099,155.26,155.24,19.15]
[1723101753079,0.8457099,155.26,155.2,20.0]
[1723101753288,0.8457099,155.26,155.22,19.15]
[1723101753452,0.8457099,155.26,155.25,19.15]
[1723101755288,0.8457099,155.26,155.25,39.15]
[1723101756173,0.8457099,155.26,155.25,84.15]
[1723101757159,0.8457099,155.26,155.25,39.15]
[1723101757354,0.8457099,155.26,155.25,19.15]
[1723101758680,0.8457099,155.26,155.24,19.15]
[1723101758887,0.8457099,155.26,155.25,19.15]
[1723101759975,0.8457099,155.26,155.2,76.6]
[1723101760160,0.8457099,155.26,155.25,19.15]
[1723101760570,0.8457099,155.26,155.24,19.15]
[1723101761387,0.8457099,155.26,155.25,19.15]
[1723101762269,0.8457099,155.26,155.25,39.15]
[1723101763768,0.8457099,155.26,155.25,19.15]
[1723101764282,0.8457099,155.26,155.25,39.15]
[1723101764666,0.8457099,155.26,155.25,84.15]
[1723101764999,0.8457099,155.26,155.25,19.15]
[1723101766894,0.8457099,155.26,155.2,76.6]
[1723101766895,0.8457099,155.26,155.24,19.15]
[1723101767191,0.8457099,155.26,155.25,19.15]
[1723101767889,0.8457099,155.26,155.2,76.6]
[1723101767890,0.8457099,155.26,155.24,19.15]
[1723101769478,0.8457099,155.26,155.25,19.15]
[1723101774293,0.8457099,155.26,155.25,64.15]
[1723101774472,0.8457099,155.26,155.25,19.15]
[1723101778987,0.8457099,155.26,155.21,1.28695316]
[1723101779201,0.8457099,155.26,155.21,21.28695316]
[1723101779503,0.8457099,155.26,155.25,19.15]
[1723101779696,0.8457099,155.26,155.24,19.15]
[1723101782488,0.8457099,155.26,155.25,19.15]
[1723101783272,0.8457099,155.26,155.25,39.15]
[1723101784130,0.8457099,155.26,155.25,64.15]
[1723101784278,0.8457099,155.26,155.25,39.15]
[1723101784473,0.8457099,155.26,155.25,19.15]
[1723101786010,0.8457099,155.26,155.24,19.15]
[1723101787892,0.8457099,155.26,155.2,83.33551089]
[1723101788115,0.8457099,155.26,155.25,19.15]
[1723101788419,0.8457099,155.26,155.24,19.15]
[1723101788917,0.8457099,155.26,155.25,19.15]
[1723101789616,0.8457099,155.26,155.24,19.15]
[1723101789919,0.8457099,155.26,155.21,45.0]
[1723101790112,0.8457099,155.26,155.2,6.73551089]
[1723101790317,0.8457099,155.26,155.21,19.15]
[1723101791184,0.8457099,155.26,155.22,19.15]
[1723101791606,0.8457099,155.26,155.23,19.15]
[1723101792401,0.8457099,155.26,155.22,19.15]
[1723101792926,0.8457099,155.26,155.14,19.23510436]
[1723101793227,0.8457099,155.26,155.23,19.15]
[1723101793629,0.8457099,155.26,155.22,19.15]
[1723101793795,0.8457099,155.26,155.23,19.15]
[1723101794300,0.8457099,155.26,155.24,19.15]
[1723101795489,0.8457099,155.26,155.23,19.15]
[1723101796118,0.8457099,155.26,155.24,19.15]
[1723101796519,0.8457099,155.26,155.23,19.15]
[1723101797527,0.8457099,155.26,155.25,19.15]
[1723101797733,0.8457099,155.26,155.25,84.15]
[1723101800600,0.8457099,155.26,155.25,65.0]
[1723101800924,0.8457099,155.26,155.25,84.15]
[1723101803937,0.8457099,155.26,155.25,39.15]
[1723101805537,0.8457099,155.26,155.25,20.0]
[1723101806934,0.8457099,155.26,155.25,20.0]
[1723101807410,0.8457099,155.26,155.25,19.15]
[1723101807609,0.8457099,155.26,155.25,39.15]
[1723101810737,0.8457099,155.26,155.23,125.40131788]
[1723101810916,0.8457099,155.26,155.24,39.15]
[1723101811313,0.8457099,155.26,155.25,19.15]
[1723101811719,0.8457099,155.26,155.25,39.15]
[1723101814246,0.8457099,155.26,155.25,84.15]
[1723101817139,0.8457099,155.26,155.25,39.15]
[1723101817441,0.8457099,155.26,155.25,20.0]
[1723101817745,0.8457099,155.26,155.25,84.15]
[1723101817928,0.8457099,155.26,155.25,39.15]
[1723101818235,0.8457099,155.26,155.25,84.15]
[1723101818748,0.8457099,155.26,155.25,39.15]
[1723101819743,0.8457099,155.26,155.25,84.15]
[1723101820633,0.8457099,155.26,155.25,20.0]
[1723101820948,0.8457099,155.26,155.25,84.15]
[1723101824728,0.8457099,155.26,155.25,65.0]
[1723101824924,0.8457099,155.26,155.25,84.15]
[1723101827050,0.8457099,155.26,155.25,39.15]
[1723101830427,0.8457099,155.26,155.25,84.15]
[1723101831955,0.8457099,155.26,155.25,65.0]
[1723101832153,0.8457099,155.26,155.25,84.15]
[1723101832342,0.8457099,155.26,155.25,39.15]
[1723101833353,15.6891,155.4,155.25,43.1653]
[1723101833523,15.6891,155.4,155.3,19.15]
[1723101833722,19.15,155.36,155.3,19.15]
[1723101834234,19.15,155.36,155.27,1.28748862]
[1723101834432,15.6891,155.4,155.3,19.15]
[1723101834636,15.6891,155.4,155.31,1.28749635]
[1723101834637,19.15,155.36,155.31,1.28749635]
[1723101834832,15.6891,155.4,155.31,65.43749635]
[1723101835051,19.15,155.33,155.25,20.0]
[1723101835353,34.6027,155.34,155.29,19.15]
[1723101835858,34.6027,155.34,155.26,65.0]
[1723101836036,34.6027,155.34,155.27,19.15]
[1723101836037,19.15,155.33,155.27,19.15]
[1723101836853,0.34,155.32,155.27,19.15]
[1723101837062,19.15,155.33,155.27,19.15]
[1723101837237,0.17,155.32,155.27,19.15]
[1723101838364,0.17,155.32,155.26,20.0]
[1723101838542,0.34,155.32,155.27,19.15]
[1723101839051,0.34,155.32,155.28,19.15]
[1723101839359,34.6027,155.34,155.27,19.15]
[1723101839565,0.17,155.33,155.27,19.15]
[1723101840266,0.17,155.33,155.28,19.15]
[1723101841477,19.49,155.33,155.27,19.15]
[1723101842147,19.49,155.33,155.23,125.40131788]
[1723101842148,19.15,155.3,155.23,125.40131788]
[1723101842354,19.15,155.28,155.21,6.73279328]
[1723101842558,0.34,155.29,155.22,19.15]
[1723101842736,19.32,155.29,155.23,19.15]
[1723101842939,0.17,155.3,155.25,19.15]
[1723101843157,0.34,155.3,155.26,19.15]
[1723101843475,19.15,155.29,155.18,6.2841]
[1723101843787,0.17,155.28,155.25,19.15]